[Event "Chessable Masters - Torneo preliminare"]
[White "Vaibhav, Suri"]
[Black "Cardoso Cardoso, Jose Gabriel"]
[WhiteFideId "5045185"]
[BlackFideId "4430492"]
[WhiteElo "2543"]
[BlackElo "2425"]
[Result "0-1"]
[Round "5"]
[TimeControl "600+2"]
[Date "2023.03.13"]
[WhiteClock "0:03:16"]
[BlackClock "0:00:08"]

1. e4 {[%clk 0:10:00]}  c5 {[%clk 0:08:16]} 2. Nf3 {[%clk 0:10:00]}  d6 {[%clk 0:08:16]} 3. Nc3 {[%clk 0:10:01]}  Nf6 {[%clk 0:08:10]} 4. d4 {[%clk 0:10:02]}  cxd4 {[%clk 0:08:11]} 5. Qxd4 {[%clk 0:10:04]}  a6 {[%clk 0:08:05]} 6. Be2 {[%clk 0:09:27]}  Nc6 {[%clk 0:08:04]} 7. Qd3 {[%clk 0:09:28]}  g6 {[%clk 0:07:58]} 8. Nd5 {[%clk 0:09:29]}  Bg7 {[%clk 0:07:52]} 9. c3 {[%clk 0:09:30]}  O-O {[%clk 0:07:48]} 10. Bg5 {[%clk 0:09:31]}  Nd7 {[%clk 0:07:23]} 11. Qe3 {[%clk 0:09:22]}  Nf6 {[%clk 0:06:15]} 12. Rd1 {[%clk 0:09:16]}  Be6 {[%clk 0:06:12]} 13. O-O {[%clk 0:09:14]}  Bxd5 {[%clk 0:05:37]} 14. exd5 {[%clk 0:09:14]}  Nb8 {[%clk 0:05:38]} 15. Rfe1 {[%clk 0:09:02]}  Nbd7 {[%clk 0:05:38]} 16. c4 {[%clk 0:08:56]}  Qb6 {[%clk 0:05:25]} 17. Qxb6 {[%clk 0:08:45]}  Nxb6 {[%clk 0:05:25]} 18. Bd3 {[%clk 0:08:34]}  Rfe8 {[%clk 0:05:23]} 19. b3 {[%clk 0:08:35]}  Nbd7 {[%clk 0:05:16]} 20. Re2 {[%clk 0:08:36]}  h6 {[%clk 0:04:59]} 21. Bd2 {[%clk 0:08:36]}  Nc5 {[%clk 0:04:55]} 22. Bc2 {[%clk 0:08:37]}  a5 {[%clk 0:04:53]} 23. Nd4 {[%clk 0:08:07]}  Nxd5 {[%clk 0:04:46]} 24. Nb5 {[%clk 0:08:08]}  Nb4 {[%clk 0:04:15]} 25. Bxb4 {[%clk 0:08:09]}  axb4 {[%clk 0:04:17]} 26. Nc7 {[%clk 0:08:11]}  Kf8 {[%clk 0:04:03]} 27. g3 {[%clk 0:08:05]}  Rxa2 {[%clk 0:03:41]} 28. Nxe8 {[%clk 0:08:05]}  Kxe8 {[%clk 0:03:42]} 29. h4 {[%clk 0:08:04]}  Kd8 {[%clk 0:03:28]} 30. Kf1 {[%clk 0:08:02]}  Rb2 {[%clk 0:03:23]} 31. Ra1 {[%clk 0:08:00]}  Bd4 {[%clk 0:03:02]} 32. Ra8+ {[%clk 0:07:59]}  Kd7 {[%clk 0:03:03]} 33. Rf8 {[%clk 0:07:49]}  Nxb3 {[%clk 0:02:34]} 34. Rxf7 {[%clk 0:07:35]}  Bf6 {[%clk 0:02:34]} 35. Bxg6 {[%clk 0:07:21]}  Nd2+ {[%clk 0:02:12]} 36. Kg2 {[%clk 0:07:18]}  Nxc4 {[%clk 0:02:09]} 37. Bf5+ {[%clk 0:06:21]}  Kc7 {[%clk 0:02:00]} 38. Rxb2 {[%clk 0:06:11]}  Nxb2 {[%clk 0:02:01]} 39. f4 {[%clk 0:05:55]}  Nc4 {[%clk 0:01:49]} 40. Kh3 {[%clk 0:05:40]}  d5 {[%clk 0:01:35]} 41. Bd3 {[%clk 0:05:30]}  b3 {[%clk 0:01:19]} 42. g4 {[%clk 0:05:31]}  Nd6 {[%clk 0:00:26]} 43. Rh7 {[%clk 0:05:32]}  Ne4 {[%clk 0:00:28]} 44. Kg2 {[%clk 0:05:33]}  b2 {[%clk 0:00:12]} 45. Rxh6 {[%clk 0:05:10]}  Nc5 {[%clk 0:00:10]} 46. Bb1 {[%clk 0:05:07]}  d4 {[%clk 0:00:11]} 47. g5 {[%clk 0:05:02]}  d3 {[%clk 0:00:10]} 48. Kf3 {[%clk 0:04:55]}  d2 {[%clk 0:00:04]} 49. Ke2 {[%clk 0:04:55]}  Bc3 {[%clk 0:00:05]} 50. Kd1 {[%clk 0:03:49]}  Na4 {[%clk 0:00:04]} 51. Re6 {[%clk 0:03:44]}  Bb4 {[%clk 0:00:05]} 52. Bc2 {[%clk 0:03:15]}  b5 {[%clk 0:00:03]} 53. h5 {[%clk 0:03:14]}  b1=Q+ {[%clk 0:00:04]} 54. Bxb1 {[%clk 0:03:15]}  Nb2+ {[%clk 0:00:05]} 55. Kc2 {[%clk 0:03:12]}  d1=Q+ {[%clk 0:00:07]} 56. Kxb2 {[%clk 0:03:14]}  Qd2+ {[%clk 0:00:07]} 57. Bc2 {[%clk 0:03:15]}  Qd4+ {[%clk 0:00:08]} 58. Kb1 {[%clk 0:03:16]}  Ba3 {[%clk 0:00:08]} 0-1


[Site "Internet"]

[Event "Chessable Masters - Torneo preliminare"]
[White "Bachmann, Axel"]
[Black "Malakhov, Vladimir"]
[WhiteFideId "3700488"]
[BlackFideId "4120787"]
[WhiteElo "2618"]
[BlackElo "2666"]
[Result "1-0"]
[Round "5"]
[TimeControl "600+2"]
[Date "2023.03.13"]
[WhiteClock "0:00:08"]
[BlackClock "0:00:04"]

1. Nf3 {[%clk 0:09:04]}  d5 {[%clk 0:09:59]} 2. e3 {[%clk 0:09:06]}  Nf6 {[%clk 0:09:58]} 3. c4 {[%clk 0:09:07]}  e6 {[%clk 0:09:57]} 4. b3 {[%clk 0:09:08]}  c5 {[%clk 0:09:55]} 5. Bb2 {[%clk 0:09:09]}  Nc6 {[%clk 0:09:56]} 6. cxd5 {[%clk 0:09:08]}  exd5 {[%clk 0:09:55]} 7. Be2 {[%clk 0:09:07]}  d4 {[%clk 0:09:21]} 8. Bb5 {[%clk 0:09:08]}  dxe3 {[%clk 0:09:03]} 9. Bxc6+ {[%clk 0:09:08]}  bxc6 {[%clk 0:09:03]} 10. Qe2 {[%clk 0:09:09]}  Be7 {[%clk 0:08:48]} 11. dxe3 {[%clk 0:09:08]}  Qa5+ {[%clk 0:08:26]} 12. Bc3 {[%clk 0:08:44]}  Qb5 {[%clk 0:08:26]} 13. Na3 {[%clk 0:08:32]}  Qxe2+ {[%clk 0:08:18]} 14. Kxe2 {[%clk 0:08:33]}  Ba6+ {[%clk 0:07:58]} 15. Nc4 {[%clk 0:08:32]}  O-O {[%clk 0:07:31]} 16. Rac1 {[%clk 0:08:23]}  Nd5 {[%clk 0:07:29]} 17. Ba5 {[%clk 0:07:41]}  f6 {[%clk 0:07:17]} 18. Rhd1 {[%clk 0:07:36]}  Rab8 {[%clk 0:06:56]} 19. e4 {[%clk 0:07:14]}  Nb6 {[%clk 0:06:25]} 20. Ke3 {[%clk 0:07:07]}  Nxc4+ {[%clk 0:05:59]} 21. bxc4 {[%clk 0:07:09]}  Rb7 {[%clk 0:06:00]} 22. Rd3 {[%clk 0:05:57]}  Re8 {[%clk 0:04:57]} 23. Rb3 {[%clk 0:04:38]}  Rd7 {[%clk 0:04:49]} 24. Rd3 {[%clk 0:04:38]}  Rxd3+ {[%clk 0:04:10]} 25. Kxd3 {[%clk 0:04:40]}  Bd6 {[%clk 0:04:11]} 26. g3 {[%clk 0:04:13]}  Bc8 {[%clk 0:04:05]} 27. Re1 {[%clk 0:03:14]}  g5 {[%clk 0:03:32]} 28. Bc3 {[%clk 0:03:11]}  g4 {[%clk 0:03:24]} 29. Nh4 {[%clk 0:03:01]}  Be5 {[%clk 0:03:13]} 30. Bxe5 {[%clk 0:03:00]}  fxe5 {[%clk 0:03:13]} 31. Rb1 {[%clk 0:02:52]}  Rd8+ {[%clk 0:02:58]} 32. Kc3 {[%clk 0:02:46]}  Be6 {[%clk 0:02:56]} 33. Ng2 {[%clk 0:01:36]}  Rd7 {[%clk 0:02:18]} 34. Ne3 {[%clk 0:01:28]}  Kg7 {[%clk 0:02:16]} 35. Rd1 {[%clk 0:01:26]}  Rd4 {[%clk 0:02:10]} 36. Rd2 {[%clk 0:01:17]}  h5 {[%clk 0:02:04]} 37. Rb2 {[%clk 0:01:16]}  Rd7 {[%clk 0:02:04]} 38. Rd2 {[%clk 0:01:11]}  Rd4 {[%clk 0:02:01]} 39. Rb2 {[%clk 0:01:12]}  Rd7 {[%clk 0:02:01]} 40. Rb8 {[%clk 0:01:13]}  Rf7 {[%clk 0:01:56]} 41. Re8 {[%clk 0:01:10]}  Rf6 {[%clk 0:01:49]} 42. Re7+ {[%clk 0:00:20]}  Kf8 {[%clk 0:01:49]} 43. Rh7 {[%clk 0:00:21]}  Rxf2 {[%clk 0:01:50]} 44. Rxh5 {[%clk 0:00:23]}  Rxa2 {[%clk 0:01:25]} 45. Rxe5 {[%clk 0:00:23]}  Ra3+ {[%clk 0:01:05]} 46. Kd2 {[%clk 0:00:24]}  Ra2+ {[%clk 0:01:02]} 47. Kc3 {[%clk 0:00:25]}  Ra3+ {[%clk 0:01:03]} 48. Kd2 {[%clk 0:00:14]}  Ra2+ {[%clk 0:01:04]} 49. Kc1 {[%clk 0:00:16]}  Kf7 {[%clk 0:00:39]} 50. Rxc5 {[%clk 0:00:13]}  Rxh2 {[%clk 0:00:38]} 51. Rxc6 {[%clk 0:00:13]}  Re2 {[%clk 0:00:39]} 52. Rc7+ {[%clk 0:00:10]}  Kf8 {[%clk 0:00:38]} 53. Nc2 {[%clk 0:00:02]}  Rxe4 {[%clk 0:00:36]} 54. c5 {[%clk 0:00:04]}  Ke8 {[%clk 0:00:09]} 55. Kd2 {[%clk 0:00:05]}  Kd8 {[%clk 0:00:07]} 56. Rxa7 {[%clk 0:00:06]}  Rc4 {[%clk 0:00:08]} 57. Ra5 {[%clk 0:00:07]}  Kc7 {[%clk 0:00:08]} 58. Ne3 {[%clk 0:00:08]}  Rb4 {[%clk 0:00:06]} 59. Kc3 {[%clk 0:00:09]}  Rb3+ {[%clk 0:00:07]} 60. Kd4 {[%clk 0:00:10]}  Bc8 {[%clk 0:00:07]} 61. Ra7+ {[%clk 0:00:10]}  Bb7 {[%clk 0:00:05]} 62. Ra1 {[%clk 0:00:06]}  Rb4+ {[%clk 0:00:06]} 63. Kc3 {[%clk 0:00:06]}  Re4 {[%clk 0:00:04]} 64. Kd3 {[%clk 0:00:08]}  Rb4 {[%clk 0:00:05]} 65. Rf1 {[%clk 0:00:07]}  Ba6+ {[%clk 0:00:04]} 66. Kc3 {[%clk 0:00:08]} 1-0


[Site "Internet"]

[Event "Chessable Masters - Torneo preliminare"]
[White "Grischuk, Alexander"]
[Black "Sharapov, Evgeny"]
[WhiteFideId "4126025"]
[BlackFideId "14103133"]
[WhiteElo "2731"]
[BlackElo "2337"]
[Result "1/2-1/2"]
[Round "5"]
[TimeControl "600+2"]
[Date "2023.03.13"]
[WhiteClock "0:00:09"]
[BlackClock "0:03:23"]

1. e4 {[%clk 0:10:01]}  c6 {[%clk 0:09:46]} 2. d4 {[%clk 0:10:02]}  d5 {[%clk 0:09:47]} 3. e5 {[%clk 0:10:04]}  c5 {[%clk 0:09:48]} 4. Nf3 {[%clk 0:10:04]}  cxd4 {[%clk 0:09:48]} 5. Qxd4 {[%clk 0:10:05]}  Nc6 {[%clk 0:09:49]} 6. Qf4 {[%clk 0:10:06]}  e6 {[%clk 0:09:50]} 7. Bd3 {[%clk 0:09:39]}  Nb4 {[%clk 0:09:47]} 8. Nc3 {[%clk 0:09:37]}  Nxd3+ {[%clk 0:09:47]} 9. cxd3 {[%clk 0:09:39]}  h6 {[%clk 0:09:32]} 10. h4 {[%clk 0:09:01]}  Ne7 {[%clk 0:09:25]} 11. h5 {[%clk 0:08:02]}  Nc6 {[%clk 0:09:20]} 12. O-O {[%clk 0:07:58]}  Be7 {[%clk 0:08:26]} 13. Qg3 {[%clk 0:07:56]}  Kf8 {[%clk 0:08:25]} 14. Nb5 {[%clk 0:07:30]}  Kg8 {[%clk 0:07:42]} 15. Bf4 {[%clk 0:05:33]}  Kh7 {[%clk 0:07:38]} 16. Nd6 {[%clk 0:05:30]}  Bxd6 {[%clk 0:07:21]} 17. exd6 {[%clk 0:05:31]}  Bd7 {[%clk 0:07:18]} 18. d4 {[%clk 0:05:21]}  Qe8 {[%clk 0:06:59]} 19. Ne5 {[%clk 0:04:55]}  Nxe5 {[%clk 0:06:55]} 20. dxe5 {[%clk 0:04:52]}  Rg8 {[%clk 0:06:41]} 21. Rfc1 {[%clk 0:04:18]}  Bc6 {[%clk 0:06:41]} 22. b4 {[%clk 0:03:23]}  a6 {[%clk 0:06:37]} 23. a4 {[%clk 0:03:22]}  f6 {[%clk 0:06:34]} 24. Qd3+ {[%clk 0:03:12]}  Kh8 {[%clk 0:06:31]} 25. b5 {[%clk 0:02:59]}  axb5 {[%clk 0:06:32]} 26. axb5 {[%clk 0:02:42]}  Rxa1 {[%clk 0:06:32]} 27. Rxa1 {[%clk 0:02:43]}  Bxb5 {[%clk 0:06:33]} 28. Qd4 {[%clk 0:02:42]}  fxe5 {[%clk 0:06:09]} 29. Qxe5 {[%clk 0:02:34]}  Kh7 {[%clk 0:06:00]} 30. Be3 {[%clk 0:01:22]}  Qf7 {[%clk 0:05:54]} 31. Bd4 {[%clk 0:01:23]}  Qf5 {[%clk 0:05:37]} 32. Qxf5+ {[%clk 0:01:04]}  exf5 {[%clk 0:05:37]} 33. Rc1 {[%clk 0:01:06]}  Bc6 {[%clk 0:05:34]} 34. f3 {[%clk 0:01:07]}  Rd8 {[%clk 0:05:31]} 35. Bc5 {[%clk 0:00:52]}  Kg8 {[%clk 0:05:18]} 36. Kf2 {[%clk 0:00:48]}  Kf7 {[%clk 0:05:18]} 37. Kg3 {[%clk 0:00:44]}  g6 {[%clk 0:04:51]} 38. hxg6+ {[%clk 0:00:40]}  Kxg6 {[%clk 0:04:52]} 39. Kf4 {[%clk 0:00:42]}  h5 {[%clk 0:04:48]} 40. Re1 {[%clk 0:00:38]}  Re8 {[%clk 0:04:47]} 41. Rxe8 {[%clk 0:00:34]}  Bxe8 {[%clk 0:04:47]} 42. Ke5 {[%clk 0:00:36]}  Bc6 {[%clk 0:04:01]} 43. Ke6 {[%clk 0:00:35]}  Kg5 {[%clk 0:04:02]} 44. Be3+ {[%clk 0:00:35]}  Kh4 {[%clk 0:03:31]} 45. Bf2+ {[%clk 0:00:25]}  Kg5 {[%clk 0:03:32]} 46. d7 {[%clk 0:00:11]}  Bxd7+ {[%clk 0:03:33]} 47. Kxd7 {[%clk 0:00:12]}  Kf4 {[%clk 0:03:28]} 48. Ke6 {[%clk 0:00:13]}  d4 {[%clk 0:03:22]} 49. Bxd4 {[%clk 0:00:10]}  Kg3 {[%clk 0:03:24]} 50. Kxf5 {[%clk 0:00:09]}  Kxg2 {[%clk 0:03:25]} 51. Ke4 {[%clk 0:00:06]}  h4 {[%clk 0:03:21]} 52. Be5 {[%clk 0:00:05]}  h3 {[%clk 0:03:21]} 53. Kd4 {[%clk 0:00:05]}  Kxf3 {[%clk 0:03:20]} 54. Kc5 {[%clk 0:00:06]}  Kg2 {[%clk 0:03:21]} 55. Kb6 {[%clk 0:00:07]}  h2 {[%clk 0:03:22]} 56. Bxh2 {[%clk 0:00:07]}  Kxh2 {[%clk 0:03:23]} 57. Kxb7 {[%clk 0:00:09]} 1/2-1/2


[Site "Internet"]

[Event "Chessable Masters - Torneo preliminare"]
[White "Santos Ruiz, Miguel"]
[Black "Svane, Rasmus"]
[WhiteFideId "22291482"]
[BlackFideId "4657101"]
[WhiteElo "2491"]
[BlackElo "2621"]
[Result "0-1"]
[Round "5"]
[TimeControl "600+2"]
[Date "2023.03.13"]
[WhiteClock "0:08:59"]
[BlackClock "0:07:30"]

1. e4 {[%clk 0:10:01]}  e5 {[%clk 0:10:00]} 2. Nf3 {[%clk 0:10:02]}  Nc6 {[%clk 0:10:01]} 3. Bc4 {[%clk 0:10:04]}  Bc5 {[%clk 0:10:01]} 4. O-O {[%clk 0:10:04]}  Nf6 {[%clk 0:10:00]} 5. d3 {[%clk 0:10:05]}  d6 {[%clk 0:09:59]} 6. c3 {[%clk 0:10:05]}  a5 {[%clk 0:09:53]} 7. Re1 {[%clk 0:10:02]}  Ba7 {[%clk 0:09:51]} 8. h3 {[%clk 0:09:50]}  O-O {[%clk 0:09:42]} 9. a4 {[%clk 0:09:44]}  h6 {[%clk 0:08:48]} 10. Nbd2 {[%clk 0:09:42]}  Be6 {[%clk 0:08:43]} 11. Bxe6 {[%clk 0:09:43]}  fxe6 {[%clk 0:08:43]} 12. Nf1 {[%clk 0:09:45]}  Qd7 {[%clk 0:08:35]} 13. Be3 {[%clk 0:09:45]}  Bxe3 {[%clk 0:08:33]} 14. Rxe3 {[%clk 0:09:47]}  Rae8 {[%clk 0:07:34]} 15. Qb3 {[%clk 0:09:48]}  b6 {[%clk 0:07:33]} 16. Qb4 {[%clk 0:08:59]}  axb4 {[%clk 0:07:30]} 0-1


[Site "Internet"]

[Event "Chessable Masters - Torneo preliminare"]
[White "Sourath, Biswas"]
[Black "Ponkratov, Pavel"]
[WhiteFideId "35091484"]
[BlackFideId "4157800"]
[WhiteElo "2138"]
[BlackElo "2586"]
[Result "1-0"]
[Round "5"]
[TimeControl "600+2"]
[Date "2023.03.13"]
[WhiteClock "0:02:01"]
[BlackClock "0:00:55"]

1. d4 {[%clk 0:10:01]}  Nf6 {[%clk 0:07:46]} 2. Bf4 {[%clk 0:10:01]}  c5 {[%clk 0:07:45]} 3. e3 {[%clk 0:10:02]}  e6 {[%clk 0:07:45]} 4. Nf3 {[%clk 0:10:02]}  Nc6 {[%clk 0:07:42]} 5. Nbd2 {[%clk 0:10:00]}  d5 {[%clk 0:07:40]} 6. c3 {[%clk 0:10:01]}  Nh5 {[%clk 0:07:41]} 7. Bg5 {[%clk 0:10:02]}  Qb6 {[%clk 0:07:42]} 8. Rb1 {[%clk 0:09:10]}  h6 {[%clk 0:07:38]} 9. Bh4 {[%clk 0:08:02]}  g5 {[%clk 0:07:36]} 10. dxc5 {[%clk 0:08:04]}  Qxc5 {[%clk 0:07:34]} 11. Nd4 {[%clk 0:08:04]}  gxh4 {[%clk 0:06:25]} 12. Qxh5 {[%clk 0:08:03]}  Be7 {[%clk 0:06:21]} 13. Bd3 {[%clk 0:07:30]}  Rg8 {[%clk 0:05:30]} 14. g3 {[%clk 0:07:30]}  hxg3 {[%clk 0:05:07]} 15. hxg3 {[%clk 0:07:32]}  Bf8 {[%clk 0:05:08]} 16. N2f3 {[%clk 0:05:57]}  Bg7 {[%clk 0:05:07]} 17. Nxc6 {[%clk 0:05:28]}  bxc6 {[%clk 0:05:04]} 18. Ne5 {[%clk 0:05:30]}  Rf8 {[%clk 0:04:47]} 19. Rh4 {[%clk 0:05:31]}  Rb8 {[%clk 0:04:25]} 20. Rg4 {[%clk 0:04:40]}  Bh8 {[%clk 0:02:18]} 21. Nxf7 {[%clk 0:04:37]}  Bxc3+ {[%clk 0:01:32]} 22. bxc3 {[%clk 0:04:29]}  Qxc3+ {[%clk 0:01:33]} 23. Ke2 {[%clk 0:04:11]}  Rxb1 {[%clk 0:01:33]} 24. Ne5+ {[%clk 0:02:24]}  Kd8 {[%clk 0:01:32]} 25. Qh4+ {[%clk 0:02:23]}  Kc7 {[%clk 0:01:22]} 26. Qe7+ {[%clk 0:02:24]}  Kb8 {[%clk 0:01:12]} 27. Qd6+ {[%clk 0:02:24]}  Kb7 {[%clk 0:00:56]} 28. Rg7+ {[%clk 0:02:20]}  Kb6 {[%clk 0:00:55]} 29. Qc7+ {[%clk 0:02:01]} 1-0


[Site "Internet"]

[Event "Chessable Masters - Torneo preliminare"]
[White "Bok, Benjamin"]
[Black "Neiksans, Arturs"]
[WhiteFideId "1017063"]
[BlackFideId "11601388"]
[WhiteElo "2608"]
[BlackElo "2553"]
[Result "1-0"]
[Round "5"]
[TimeControl "600+2"]
[Date "2023.03.13"]
[WhiteClock "0:01:07"]
[BlackClock "0:02:43"]

1. d4 {[%clk 0:09:08]}  Nf6 {[%clk 0:09:56]} 2. c4 {[%clk 0:09:07]}  e6 {[%clk 0:09:57]} 3. Nc3 {[%clk 0:09:07]}  Bb4 {[%clk 0:09:58]} 4. Qc2 {[%clk 0:09:08]}  d6 {[%clk 0:09:31]} 5. e3 {[%clk 0:09:08]}  Nbd7 {[%clk 0:09:26]} 6. Bd3 {[%clk 0:09:08]}  c5 {[%clk 0:09:15]} 7. Ne2 {[%clk 0:09:09]}  O-O {[%clk 0:09:07]} 8. O-O {[%clk 0:09:09]}  Qe7 {[%clk 0:08:55]} 9. a3 {[%clk 0:08:55]}  Ba5 {[%clk 0:08:43]} 10. Ng3 {[%clk 0:08:12]}  Bxc3 {[%clk 0:08:01]} 11. Qxc3 {[%clk 0:08:08]}  b6 {[%clk 0:08:01]} 12. b4 {[%clk 0:08:00]}  Ba6 {[%clk 0:07:44]} 13. dxc5 {[%clk 0:07:46]}  dxc5 {[%clk 0:07:43]} 14. b5 {[%clk 0:07:44]}  Bb7 {[%clk 0:07:44]} 15. Bb2 {[%clk 0:07:44]}  Rfd8 {[%clk 0:07:40]} 16. Rfd1 {[%clk 0:07:42]}  Nf8 {[%clk 0:07:33]} 17. f3 {[%clk 0:06:53]}  Rd7 {[%clk 0:07:27]} 18. Bc2 {[%clk 0:06:42]}  a6 {[%clk 0:07:18]} 19. Rxd7 {[%clk 0:05:42]}  N8xd7 {[%clk 0:07:16]} 20. Rd1 {[%clk 0:05:09]}  Nf8 {[%clk 0:05:54]} 21. Ne4 {[%clk 0:04:18]}  Ne8 {[%clk 0:05:46]} 22. Nd6 {[%clk 0:04:16]}  f5 {[%clk 0:05:06]} 23. Nxe8 {[%clk 0:03:19]}  Rxe8 {[%clk 0:05:06]} 24. Qe5 {[%clk 0:03:19]}  axb5 {[%clk 0:04:54]} 25. cxb5 {[%clk 0:03:21]}  Nd7 {[%clk 0:04:55]} 26. Qxg7+ {[%clk 0:02:52]}  Qxg7 {[%clk 0:04:56]} 27. Bxg7 {[%clk 0:02:54]}  Re7 {[%clk 0:04:37]} 28. Bc3 {[%clk 0:02:54]}  Bd5 {[%clk 0:04:19]} 29. a4 {[%clk 0:02:42]}  Nf8 {[%clk 0:04:06]} 30. e4 {[%clk 0:02:17]}  fxe4 {[%clk 0:04:07]} 31. fxe4 {[%clk 0:02:19]}  Bc4 {[%clk 0:04:09]} 32. Kf2 {[%clk 0:02:14]}  e5 {[%clk 0:04:00]} 33. Ke3 {[%clk 0:01:43]}  h5 {[%clk 0:03:17]} 34. Rd6 {[%clk 0:01:37]}  Nd7 {[%clk 0:03:17]} 35. Bd1 {[%clk 0:01:32]}  Bf7 {[%clk 0:03:18]} 36. a5 {[%clk 0:01:14]}  bxa5 {[%clk 0:03:19]} 37. b6 {[%clk 0:01:13]}  Kg7 {[%clk 0:02:51]} 38. b7 {[%clk 0:01:08]}  Nb8 {[%clk 0:02:43]} 39. Rd8 {[%clk 0:01:07]} 1-0


[Site "Internet"]

[Event "Chessable Masters - Torneo preliminare"]
[White "Xu, Yinglun"]
[Black "Durarbayli, Vasif"]
[WhiteFideId "8604940"]
[BlackFideId "13402935"]
[WhiteElo "2523"]
[BlackElo "2531"]
[Result "0-1"]
[Round "5"]
[TimeControl "600+2"]
[Date "2023.03.13"]
[WhiteClock "0:00:06"]
[BlackClock "0:00:47"]

1. d4 {[%clk 0:10:00]}  Nf6 {[%clk 0:09:59]} 2. c4 {[%clk 0:10:01]}  e6 {[%clk 0:10:00]} 3. Nf3 {[%clk 0:09:59]}  b6 {[%clk 0:10:01]} 4. g3 {[%clk 0:09:58]}  Bb7 {[%clk 0:10:03]} 5. Bg2 {[%clk 0:09:59]}  Be7 {[%clk 0:10:04]} 6. O-O {[%clk 0:09:58]}  O-O {[%clk 0:10:06]} 7. Nc3 {[%clk 0:09:48]}  Ne4 {[%clk 0:10:02]} 8. Qc2 {[%clk 0:09:45]}  Nxc3 {[%clk 0:10:02]} 9. Qxc3 {[%clk 0:09:46]}  a5 {[%clk 0:10:03]} 10. Qc2 {[%clk 0:09:16]}  f5 {[%clk 0:09:50]} 11. d5 {[%clk 0:08:59]}  Bf6 {[%clk 0:09:39]} 12. Rd1 {[%clk 0:08:47]}  Qe7 {[%clk 0:09:13]} 13. Bf4 {[%clk 0:08:29]}  d6 {[%clk 0:08:13]} 14. dxe6 {[%clk 0:08:09]}  Be4 {[%clk 0:08:12]} 15. Qd2 {[%clk 0:07:40]}  Qxe6 {[%clk 0:08:03]} 16. Nd4 {[%clk 0:06:08]}  Bxd4 {[%clk 0:08:01]} 17. Qxd4 {[%clk 0:06:08]}  Bxg2 {[%clk 0:06:37]} 18. Kxg2 {[%clk 0:06:06]}  Nd7 {[%clk 0:06:38]} 19. b3 {[%clk 0:05:05]}  Rae8 {[%clk 0:06:30]} 20. Re1 {[%clk 0:04:50]}  Nf6 {[%clk 0:06:07]} 21. Rad1 {[%clk 0:04:47]}  Qf7 {[%clk 0:05:31]} 22. Bc1 {[%clk 0:04:00]}  Re4 {[%clk 0:05:01]} 23. Qd3 {[%clk 0:03:49]}  Rfe8 {[%clk 0:05:00]} 24. Bb2 {[%clk 0:03:41]}  Nd7 {[%clk 0:04:36]} 25. e3 {[%clk 0:03:25]}  a4 {[%clk 0:03:53]} 26. Qc3 {[%clk 0:02:43]}  axb3 {[%clk 0:03:45]} 27. axb3 {[%clk 0:02:44]}  h5 {[%clk 0:03:41]} 28. Rd5 {[%clk 0:02:42]}  R8e7 {[%clk 0:03:32]} 29. h4 {[%clk 0:02:34]}  Qg6 {[%clk 0:03:28]} 30. Rd4 {[%clk 0:01:17]}  Kh7 {[%clk 0:02:36]} 31. f3 {[%clk 0:01:14]}  Rxd4 {[%clk 0:01:48]} 32. Qxd4 {[%clk 0:01:15]}  f4 {[%clk 0:01:22]} 33. Kf1 {[%clk 0:00:15]}  Qxg3 {[%clk 0:00:59]} 34. Qxf4 {[%clk 0:00:15]}  Qxf4 {[%clk 0:00:59]} 35. exf4 {[%clk 0:00:17]}  Rxe1+ {[%clk 0:00:59]} 36. Kxe1 {[%clk 0:00:19]}  Nc5 {[%clk 0:01:01]} 37. Ke2 {[%clk 0:00:16]}  Nxb3 {[%clk 0:01:01]} 38. f5 {[%clk 0:00:17]}  g6 {[%clk 0:00:53]} 39. f6 {[%clk 0:00:08]}  Kg8 {[%clk 0:00:54]} 40. f4 {[%clk 0:00:04]}  Kf7 {[%clk 0:00:52]} 41. f5 {[%clk 0:00:04]}  gxf5 {[%clk 0:00:52]} 42. Ke3 {[%clk 0:00:06]}  Na5 {[%clk 0:00:47]} 43. Kf4 {[%clk 0:00:06]}  Nxc4 {[%clk 0:00:47]} 0-1


[Site "Internet"]

[Event "Chessable Masters - Torneo preliminare"]
[White "Chirila, Ioan-Cristian"]
[Black "Bindrich, Falko"]
[WhiteFideId "1211668"]
[BlackFideId "4676670"]
[WhiteElo "2508"]
[BlackElo "2548"]
[Result "1-0"]
[Round "5"]
[TimeControl "600+2"]
[Date "2023.03.13"]
[WhiteClock "0:03:21"]
[BlackClock "0:05:43"]

1. d4 {[%clk 0:09:42]}  Nf6 {[%clk 0:09:56]} 2. c4 {[%clk 0:09:34]}  e6 {[%clk 0:09:49]} 3. Nf3 {[%clk 0:09:35]}  d5 {[%clk 0:09:50]} 4. Nc3 {[%clk 0:09:35]}  Be7 {[%clk 0:09:52]} 5. Bg5 {[%clk 0:09:23]}  O-O {[%clk 0:09:52]} 6. e3 {[%clk 0:09:20]}  Nbd7 {[%clk 0:09:53]} 7. Qc2 {[%clk 0:09:16]}  h6 {[%clk 0:09:55]} 8. Bh4 {[%clk 0:09:15]}  c5 {[%clk 0:09:55]} 9. Rd1 {[%clk 0:09:10]}  cxd4 {[%clk 0:09:52]} 10. Rxd4 {[%clk 0:09:08]}  Nb6 {[%clk 0:09:16]} 11. g4 {[%clk 0:07:39]}  Ne8 {[%clk 0:08:07]} 12. Bg3 {[%clk 0:07:08]}  Bf6 {[%clk 0:07:56]} 13. Rd2 {[%clk 0:06:11]}  Qe7 {[%clk 0:07:55]} 14. h4 {[%clk 0:05:55]}  Nxc4 {[%clk 0:07:24]} 15. Bxc4 {[%clk 0:05:56]}  dxc4 {[%clk 0:07:26]} 16. Ne4 {[%clk 0:05:47]}  g6 {[%clk 0:07:15]} 17. g5 {[%clk 0:05:28]}  Bg7 {[%clk 0:07:16]} 18. h5 {[%clk 0:05:17]}  c3 {[%clk 0:06:54]} 19. bxc3 {[%clk 0:05:10]}  f5 {[%clk 0:06:40]} 20. gxf6 {[%clk 0:05:01]}  Bxf6 {[%clk 0:06:40]} 21. hxg6 {[%clk 0:04:20]}  Bg7 {[%clk 0:06:41]} 22. Ne5 {[%clk 0:04:16]}  Nf6 {[%clk 0:06:29]} 23. Nf7 {[%clk 0:03:59]}  e5 {[%clk 0:06:13]} 24. Nxf6+ {[%clk 0:03:31]}  Qxf6 {[%clk 0:05:53]} 25. Bxe5 {[%clk 0:03:32]}  Qf3 {[%clk 0:05:43]} 26. Nxh6+ {[%clk 0:03:21]} 1-0


[Site "Internet"]